bitfinex-derivatives/quotes_BTCF0:USTF0_20260131
["timestamp","ask_amount","ask_price","bid_price","bid_amount"]
[1769864136434,0.11591249,82857.0,82829.0,0.1088]
[1769864136633,0.00044099,82858.0,82829.0,0.1088]
[1769864136933,0.11591249,82857.0,82829.0,0.1088]
[1769864137124,0.00044099,82858.0,82829.0,0.1088]
[1769864137432,0.11593948,82857.0,82829.0,0.1088]
[1769864137628,0.00044099,82858.0,82829.0,0.1088]
[1769864137847,0.00952259,82856.0,82829.0,0.1088]
[1769864138330,0.11601404,82855.0,82829.0,0.1088]
[1769864138527,0.00952259,82856.0,82829.0,0.1088]
[1769864138728,0.11601525,82855.0,82829.0,0.1088]
[1769864138937,0.00952259,82856.0,82829.0,0.1088]
[1769864139130,0.11601476,82855.0,82829.0,0.1088]
[1769864139330,0.11601476,82854.0,82829.0,0.1088]
[1769864139529,0.00952259,82856.0,82829.0,0.1088]
[1769864139732,0.11612052,82855.0,82829.0,0.1088]
[1769864139928,0.11612052,82854.0,82830.0,0.00984261]
[1769864140124,0.11612052,82853.0,82829.0,0.1088]
[1769864140320,0.11612052,82852.0,82829.0,0.1088]
[1769864140520,0.11612052,82851.0,82829.0,0.1088]
[1769864140725,0.00952259,82856.0,82829.0,0.1088]
[1769864140924,0.11625225,82855.0,82829.0,0.1088]
[1769864141121,0.11625225,82854.0,82829.0,0.1088]
[1769864141327,0.11625225,82853.0,82829.0,0.1088]
[1769864141526,0.11625225,82852.0,82829.0,0.1088]
[1769864141726,0.11625225,82851.0,82829.0,0.1088]
[1769864141930,0.00952259,82856.0,82829.0,0.1088]
[1769864142226,0.11626356,82855.0,82830.0,0.00914181]
[1769864142425,0.11626356,82855.0,82829.0,0.1088]
[1769864142426,0.11626356,82854.0,82829.0,0.1088]
[1769864142626,0.11626356,82853.0,82829.0,0.120891]
[1769864142933,0.11626356,82852.0,82829.0,0.120891]
[1769864143130,0.11626356,82851.0,82829.0,0.120891]
[1769864143331,0.11626356,82850.0,82829.0,0.120891]
[1769864143639,0.11626356,82849.0,82829.0,0.120891]
[1769864143942,0.00944303,82855.0,82829.0,0.120891]
[1769864144130,0.11628288,82854.0,82829.0,0.120891]
[1769864144425,0.11628288,82853.0,82829.0,0.120891]
[1769864144628,0.11628288,82852.0,82830.0,0.00914181]
[1769864144828,0.11628288,82851.0,82830.0,0.00914181]
[1769864145028,0.11628288,82850.0,82830.0,0.00914181]
[1769864145227,0.11628288,82849.0,82829.0,0.120891]
[1769864145428,0.00944303,82854.0,82829.0,0.120891]
[1769864145629,0.1163233,82853.0,82829.0,0.120891]
[1769864145829,0.1163233,82852.0,82829.0,0.120891]
[1769864146027,0.1053233,82851.0,82829.0,0.120891]
[1769864146229,0.00944303,82854.0,82829.0,0.120891]
[1769864147232,0.00944303,82854.0,82830.0,0.00914181]
[1769864147433,0.00944303,82860.0,82835.0,0.01209]
[1769864147635,0.11824303,82860.0,82836.0,0.00914181]
[1769864148037,0.00944303,82859.0,82836.0,0.00914181]
[1769864150132,0.1088,82860.0,82836.0,0.00914181]
[1769864150337,0.00944303,82863.0,82836.0,0.00914181]
[1769864150939,0.00944303,82861.0,82836.0,0.00914181]
[1769864151535,0.20714207,82850.0,82836.0,0.00914181]
[1769864153139,0.18714207,82850.0,82836.0,0.00914181]
[1769864153840,0.18714207,82850.0,82836.0,0.01014181]
[1769864154342,0.00944303,82849.0,82836.0,0.001]
[1769864154538,0.00944303,82849.0,82834.0,0.00914181]
[1769864154738,0.20714207,82844.0,82834.0,0.00914181]
[1769864155543,0.20714207,82850.0,82834.0,0.00914181]
[1769864156242,0.00944303,82860.0,82835.0,0.00914181]
[1769864156442,0.20714207,82850.0,82835.0,0.00914181]
[1769864157344,0.00944303,82856.0,82835.0,0.00914181]
[1769864157743,0.00944303,82856.0,82835.0,0.01014181]
[1769864158142,0.00944303,82854.0,82835.0,0.01014181]
[1769864158339,0.11576952,82853.0,82835.0,0.00914181]
[1769864158538,0.23911109,82871.0,82835.0,0.00914181]
[1769864158539,0.11576952,82852.0,82836.0,0.01209]
[1769864158848,0.11576952,82851.0,82837.0,0.00914181]
[1769864159047,0.00944303,82856.0,82837.0,0.00914181]
[1769864159246,0.11575061,82855.0,82837.0,0.00914181]
[1769864159448,0.11575061,82854.0,82837.0,0.00914181]
[1769864159651,0.11575061,82853.0,82837.0,0.00914181]
[1769864159848,0.11575061,82852.0,82837.0,0.00914181]
[1769864160045,0.00944303,82856.0,82837.0,0.00914181]
[1769864160242,0.11073424,82855.0,82837.0,0.00914181]
[1769864160549,0.00944303,82871.0,82837.0,0.00914181]
[1769864160941,0.00944303,82871.0,82837.0,0.001]
[1769864161641,0.00944303,82871.0,82835.0,0.02123181]
[1769864161842,0.00944303,82871.0,82836.0,0.00914181]
[1769864162356,0.00944303,82871.0,82835.0,0.01209]
[1769864163455,0.00944303,82871.0,82835.0,0.02123181]
[1769864163755,0.00944303,82859.0,82836.0,0.1088]
[1769864168154,0.00944303,82859.0,82836.0,0.11790952]
[1769864168457,0.00949898,82849.0,82836.0,0.1088]
[1769864170967,0.00949898,82849.0,82833.0,0.00910952]
[1769864172167,0.11562239,82848.0,82833.0,0.00910952]
[1769864172369,0.00949898,82849.0,82833.0,0.00910952]
[1769864172370,0.11562239,82847.0,82833.0,0.00910952]
[1769864172575,0.00949898,82849.0,82833.0,0.00910952]
[1769864172862,0.00949898,82876.0,82840.0,0.00910952]
[1769864173067,0.60254224,82902.0,82821.0,0.012092]
[1769864173068,0.1088,82881.0,82857.0,0.00910952]
[1769864173265,0.00949898,82880.0,82859.0,0.00910952]
[1769864173463,0.00949898,82879.0,82855.0,0.012087]
[1769864174070,0.00949898,82879.0,82854.0,0.00910952]
[1769864176571,0.00949898,82879.0,82855.0,0.00910952]
[1769864182671,0.00949898,82896.0,82869.0,0.00910952]
[1769864182866,0.00949898,82896.0,82850.0,0.20714207]
[1769864182867,0.00949898,82896.0,82874.0,0.00910952]
[1769864183382,0.01241586,82897.0,82874.0,0.00910952]
[1769864183571,0.21664105,82900.0,82876.0,0.00910952]
[1769864183772,0.1088,82902.0,82879.0,0.00910952]
[1769864184177,0.1088,82902.0,82881.0,0.00910952]
[1769864186874,0.00949898,82908.0,82881.0,0.00910952]
[1769864187374,0.00949898,82908.0,82881.0,0.01010952]
[1769864191383,0.00949898,82913.0,82882.0,0.00910952]
[1769864191577,0.00949898,82913.0,82888.0,0.00910952]
[1769864192979,0.10876,82914.0,82890.0,0.00910952]
[1769864193179,0.10876,82914.0,82892.0,0.00910952]
[1769864193378,0.00949898,82919.0,82892.0,0.00910952]
[1769864193379,0.00949898,82919.0,82893.0,0.00910952]
[1769864193582,0.10876,82918.0,82896.0,0.00910952]
[1769864193891,0.00949898,82917.0,82898.0,0.00910952]
[1769864194385,0.10876,82918.0,82898.0,0.00910952]
[1769864194786,0.00949898,82917.0,82898.0,0.00910952]
[1769864195291,0.07742107,82937.0,82891.0,0.10876]
[1769864195292,0.10876,82923.0,82902.0,0.00910952]
[1769864195478,0.10876,82923.0,82904.0,0.00910952]
[1769864195879,0.10876,82923.0,82907.0,0.00910952]
[1769864196279,0.10485051,82923.0,82907.0,0.00910952]
[1769864197178,0.00988212,82926.0,82907.0,0.00910952]
[1769864197378,0.00988212,82930.0,82907.0,0.00910952]
[1769864198695,0.00988212,82929.0,82904.0,0.10876]
[1769864198989,0.00988212,82929.0,82904.0,0.11871162]
[1769864199294,0.00988212,82929.0,82905.0,0.00995162]
[1769864200290,0.00988212,82929.0,82910.0,0.20714207]
[1769864203788,0.00988212,82929.0,82904.0,0.10876]
[1769864204090,0.00988212,82929.0,82894.0,0.10872]
[1769864204293,0.00988212,82929.0,82900.0,0.20714207]
[1769864206492,0.00988212,82929.0,82894.0,0.10872]
[1769864207492,0.01088212,82929.0,82894.0,0.10872]
[1769864208889,0.00988212,82929.0,82894.0,0.10872]
[1769864210887,0.00988212,82929.0,82894.0,0.11788218]
[1769864212693,0.00988212,82929.0,82895.0,0.00916218]
[1769864213288,0.10872,82928.0,82904.0,0.00916218]
[1769864214098,0.00913923,82927.0,82895.0,0.00916218]
[1769864214998,0.00913923,82927.0,82898.0,0.00916218]
[1769864216500,0.00913923,82927.0,82894.0,0.10872]
[1769864216998,0.00913923,82927.0,82894.0,0.11788218]
[1769864218701,0.00913923,82927.0,82895.0,0.00916218]
[1769864227204,0.00913923,82927.0,82898.0,0.00921777]
[1769864227394,0.10872,82928.0,82904.0,0.00921777]
[1769864227590,0.00930404,82927.0,82904.0,0.00921777]
[1769864232809,0.00930404,82927.0,82899.0,0.00921777]
[1769864235600,0.00930404,82927.0,82884.0,0.00921777]
[1769864236311,0.00930404,82925.0,82884.0,0.00921777]
[1769864236611,0.00930404,82923.0,82884.0,0.00921777]
[1769864236815,0.00930404,82921.0,82884.0,0.00921777]
[1769864237002,0.00930404,82919.0,82884.0,0.00921777]
[1769864237203,0.00930404,82917.0,82884.0,0.00921777]
[1769864237503,0.00930404,82915.0,82884.0,0.00921777]
[1769864237706,0.00930404,82913.0,82884.0,0.00921777]
[1769864237911,0.00930404,82911.0,82884.0,0.00921777]
[1769864238112,0.00930404,82909.0,82884.0,0.00921777]
[1769864238308,0.00930404,82907.0,82884.0,0.00921777]
[1769864238610,0.21832149,82908.0,82884.0,0.00921777]
[1769864238611,0.00930404,82905.0,82884.0,0.00921777]
[1769864238909,0.00930404,82903.0,82884.0,0.00921777]
[1769864239111,0.10960149,82902.0,82884.0,0.00921777]
[1769864239305,0.00930404,82903.0,82884.0,0.00921777]
[1769864239608,0.10957373,82902.0,82884.0,0.00921777]
[1769864239808,0.00930404,82906.0,82884.0,0.00921777]
[1769864240000,0.11887641,82905.0,82884.0,0.00921777]
[1769864240200,0.10957237,82904.0,82884.0,0.00921777]
[1769864240408,0.10957237,82903.0,82884.0,0.00921777]
[1769864240608,0.10957237,82902.0,82884.0,0.00921777]
[1769864240909,0.10957237,82901.0,82884.0,0.00921777]
[1769864241120,0.00930404,82905.0,82884.0,0.00921777]
[1769864241312,0.1095494,82904.0,82884.0,0.00921777]
[1769864241512,0.10872,82908.0,82869.0,0.18117099]
[1769864241513,0.00930404,82902.0,82869.0,0.18117099]
[1769864241702,0.00930404,82900.0,82869.0,0.00921777]
[1769864242011,0.10872,82908.0,82869.0,0.00921777]
[1769864242012,0.00930404,82898.0,82869.0,0.00921777]
[1769864242215,0.00930404,82896.0,82869.0,0.00921777]
[1769864242399,0.00930404,82894.0,82869.0,0.00921777]
[1769864242604,0.10872,82897.0,82869.0,0.00921777]
[1769864242605,0.00930404,82892.0,82869.0,0.00921777]
[1769864244003,0.00930404,82892.0,82865.0,9.186e-05]
[1769864244004,0.00930404,82890.0,82865.0,9.186e-05]
[1769864244312,0.00930404,82888.0,82865.0,9.186e-05]
[1769864244511,0.00930404,82886.0,82865.0,9.186e-05]
[1769864244713,0.21815683,82885.0,82865.0,9.186e-05]
[1769864244909,0.00930404,82884.0,82865.0,9.186e-05]
[1769864247903,0.00930404,82882.0,82865.0,9.186e-05]
[1769864248106,0.00930404,82880.0,82855.0,0.00921777]
[1769864248714,0.00930404,82880.0,82854.0,0.10872]
[1769864248913,0.00930404,82878.0,82854.0,0.10872]
[1769864249216,0.00930404,82876.0,82855.0,0.00921777]
[1769864249409,9.706e-05,82877.0,82855.0,0.00921777]
[1769864249410,0.00930404,82874.0,82855.0,0.00921777]
[1769864250020,0.10872,82875.0,82855.0,0.00921777]
[1769864250216,0.00930404,82874.0,82855.0,0.00921777]
[1769864254123,0.10872,82875.0,82855.0,0.00921777]
[1769864254907,0.10872,82875.0,82857.0,0.00921777]
[1769864255214,0.10872,82875.0,82861.0,0.00921777]
[1769864256516,0.10872,82875.0,82860.0,0.012087]
[1769864256717,0.10872,82875.0,82857.0,0.02230477]
[1769864256918,0.10872,82875.0,82858.0,0.00942706]
[1769864258119,0.10872,82875.0,82861.0,0.001]
[1769864258317,0.10872,82875.0,82861.0,0.01042706]
[1769864258720,0.10872,82875.0,82849.0,0.00942706]
[1769864258721,0.00992468,82874.0,82849.0,0.00942706]
[1769864259223,0.00992468,82874.0,82849.0,0.11818706]
[1769864259816,0.00992468,82874.0,82849.0,0.10876]
[1769864260427,0.00921117,82872.0,82849.0,0.10876]
[1769864264228,0.00921117,82870.0,82849.0,0.10876]
[1769864265415,0.00921117,82870.0,82844.0,0.00942706]
[1769864267228,0.00921117,82868.0,82837.0,0.009438]
[1769864267520,0.11358056,82869.0,82837.0,0.009438]
[1769864267521,0.00921117,82866.0,82837.0,0.009438]
[1769864267725,0.00921117,82859.0,82831.0,0.10876]
[1769864267930,0.00921117,82857.0,82830.0,0.10876]
[1769864268125,0.00921117,82857.0,82830.0,0.0048317]
[1769864268321,0.00921117,82857.0,82837.0,0.001]
[1769864268523,0.00921117,82857.0,82830.0,0.10876]
[1769864269031,0.00921117,82857.0,82829.0,0.10876]
[1769864269628,0.00921117,82857.0,82830.0,0.00235666]
[1769864269928,0.00921117,82857.0,82829.0,0.10876]
[1769864270726,0.00921117,82857.0,82832.0,0.012091]
[1769864270928,0.00921117,82857.0,82829.0,0.10876]
[1769864271930,0.00921117,82857.0,82831.0,0.012091]
[1769864273523,0.20717368,82841.0,82831.0,0.012091]
[1769864273831,0.0075027,82841.0,82833.0,0.012091]
[1769864274836,0.0075027,82841.0,82834.0,0.00039679]
[1769864276828,0.20717368,82850.0,82834.0,0.00039679]
[1769864277439,0.19017368,82850.0,82835.0,0.00050415]
[1769864278537,0.00983194,82844.0,82834.0,0.001]
[1769864278730,0.20717368,82845.0,82821.0,0.00050415]
[1769864278731,0.00983194,82842.0,82821.0,0.00050415]
[1769864279038,0.20717368,82830.0,82821.0,0.00050415]
[1769864279235,0.20717368,82840.0,82821.0,0.00050415]
[1769864279531,0.20717368,82840.0,82825.0,0.00049491]
[1769864279738,0.20717368,82835.0,82825.0,0.00049491]
[1769864281343,0.20717368,82835.0,82825.0,0.00149491]
[1769864281644,0.20717368,82835.0,82826.0,0.00030259]
[1769864282738,0.00010657,82843.0,82826.0,0.00030259]
[1769864282933,0.00010657,82843.0,82832.0,0.00024202]
[1769864283841,0.00991932,82842.0,82823.0,0.00024202]
[1769864284329,0.00991932,82842.0,82818.0,0.4272]
[1769864284330,0.00991932,82842.0,82832.0,0.001]
[1769864284531,0.00991932,82842.0,82818.0,0.42744202]
[1769864284736,0.00991932,82842.0,82819.0,0.00024202]
[1769864286039,0.00991932,82842.0,82823.0,0.00245671]
[1769864286741,0.00991932,82842.0,82823.0,0.00045671]
[1769864292648,0.00010657,82843.0,82817.0,0.00012616]
[1769864292649,0.00986253,82839.0,82817.0,0.00012616]
[1769864292850,0.00986253,82832.0,82817.0,0.00012616]
[1769864293051,0.00986491,82830.0,82817.0,0.00012616]
[1769864296950,0.00999303,82828.0,82797.0,0.012096]
[1769864297251,0.00999303,82826.0,82797.0,0.012096]
[1769864302369,0.00999303,82826.0,82797.0,0.01237957]
[1769864304567,0.00999303,82826.0,82797.0,0.00028357]
[1769864304776,0.00999303,82826.0,82796.0,0.13694457]
[1769864305169,0.00986578,82824.0,82796.0,0.13694457]
[1769864305363,0.00986578,82822.0,82796.0,0.13694457]
[1769864306872,0.00986578,82822.0,82796.0,0.13734721]
[1769864307472,0.00986578,82822.0,82796.0,0.13694457]
[1769864308366,0.00984116,82820.0,82796.0,0.13694457]
[1769864308567,0.00984116,82818.0,82796.0,0.13694457]
[1769864308874,0.00984116,82816.0,82796.0,0.13694457]
[1769864309369,0.50464,82820.0,82801.0,0.00071528]
[1769864309566,0.10884,82819.0,82801.0,0.00071528]
[1769864309770,0.00976157,82818.0,82801.0,0.00071528]
[1769864310071,0.10884,82819.0,82801.0,0.00071528]
[1769864310272,0.00976157,82818.0,82796.0,0.13694457]
[1769864310666,0.00976157,82818.0,82796.0,0.13765985]
[1769864310975,0.00976157,82818.0,82797.0,0.00054288]
[1769864317872,0.00976157,82818.0,82796.0,0.13694457]
[1769864318782,0.00984267,82816.0,82796.0,0.13694457]
[1769864321178,0.00985697,82814.0,82796.0,0.13694457]
[1769864324078,0.00985916,82812.0,82796.0,0.13694457]
[1769864324672,0.06869916,82813.0,82796.0,0.13694457]
[1769864324979,0.06869916,82813.0,82797.0,0.00942139]
[1769864326274,0.50632,82816.0,82797.0,0.00942139]
[1769864326586,0.00945645,82814.0,82797.0,0.00942139]
[1769864326886,0.12318812,82813.0,82797.0,0.00942139]
[1769864327183,0.00945645,82813.0,82797.0,0.00942139]
[1769864331790,0.07029645,82812.0,82797.0,0.00942139]
[1769864332286,0.11374167,82811.0,82797.0,0.00942139]
[1769864332581,0.11374167,82810.0,82797.0,0.00942139]
[1769864332782,0.07029645,82812.0,82797.0,0.00942139]
[1769864332978,0.11374167,82811.0,82797.0,0.00942139]
[1769864333182,0.11374167,82810.0,82797.0,0.00942139]
[1769864333378,0.07029645,82812.0,82797.0,0.00942139]
[1769864333585,0.11375423,82811.0,82797.0,0.00942139]
[1769864333785,0.11375423,82810.0,82797.0,0.00942139]
[1769864333986,0.07029645,82812.0,82797.0,0.00942139]
[1769864334187,0.11375428,82811.0,82797.0,0.00942139]
[1769864334403,0.11375428,82810.0,82797.0,0.00942139]
[1769864334590,0.11275428,82809.0,82799.0,0.00942139]
[1769864334787,0.10884,82813.0,82801.0,0.00942139]
[1769864334987,0.10884,82813.0,82804.0,0.00942139]
[1769864335287,0.10884,82818.0,82806.0,0.00942139]
[1769864335481,0.0238241,82818.0,82808.0,0.21659507]
[1769864335684,0.0238241,82818.0,82808.0,0.00942139]
[1769864336079,0.0238241,82818.0,82805.0,0.012095]
[1769864336287,0.00011815,82823.0,82808.0,0.00942139]
[1769864343298,0.00945645,82822.0,82804.0,0.00942139]
[1769864344296,0.00945645,82822.0,82805.0,0.00942139]
[1769864350504,0.00945645,82822.0,82804.0,0.012095]
[1769864350810,0.00945645,82822.0,82803.0,0.10884]
[1769864351200,0.00945645,82822.0,82803.0,0.11799465]
[1769864351400,0.00945645,82822.0,82803.0,0.13008965]
[1769864351997,0.00011815,82823.0,82810.0,0.00915465]
[1769864352204,0.0098946,82837.0,82812.0,0.00915465]
[1769864352506,0.23332896,82836.0,82814.0,0.00915465]
[1769864352804,0.22343436,82835.0,82814.0,0.00915465]
[1769864353005,0.11459436,82834.0,82814.0,0.00915465]
[1769864353207,0.11470894,82833.0,82814.0,0.00915465]
[1769864353406,0.11459436,82832.0,82814.0,0.00915465]
[1769864353595,0.11459436,82831.0,82814.0,0.00915465]
[1769864353800,0.11459436,82830.0,82814.0,0.00915465]
[1769864354100,0.11459436,82829.0,82814.0,0.00915465]
[1769864354299,0.11459436,82828.0,82814.0,0.00915465]
[1769864354503,0.00011458,82833.0,82814.0,0.00915465]
[1769864354806,0.11458807,82832.0,82814.0,0.00915465]
[1769864354995,0.11458807,82831.0,82814.0,0.00915465]
[1769864355199,0.11458807,82830.0,82814.0,0.00915465]
[1769864355400,0.11458807,82829.0,82814.0,0.00915465]
[1769864355595,0.11458807,82828.0,82814.0,0.00915465]
[1769864355909,0.00011458,82833.0,82814.0,0.00915465]
[1769864356108,0.11459028,82832.0,82815.0,0.00903136]
[1769864356297,0.11459028,82831.0,82815.0,0.00903136]
[1769864356506,0.11459028,82830.0,82815.0,0.00903136]
[1769864356702,0.11459028,82829.0,82815.0,0.00903136]
[1769864356901,0.11459028,82828.0,82815.0,0.00903136]
[1769864357110,0.00011458,82833.0,82815.0,0.00903136]
[1769864357412,0.11459496,82832.0,82815.0,0.00903136]
[1769864357603,0.11459496,82831.0,82815.0,0.00903136]
[1769864357804,0.11459496,82830.0,82815.0,0.00903136]
[1769864358005,0.11459496,82829.0,82815.0,0.00903136]
[1769864358204,0.11459496,82828.0,82815.0,0.00903136]
[1769864358410,0.11459496,82827.0,82815.0,0.00903136]
[1769864358609,0.00011458,82833.0,82815.0,0.00903136]
[1769864358812,0.11459023,82832.0,82815.0,0.00903136]
[1769864359009,0.11459023,82831.0,82815.0,0.00903136]
[1769864359313,0.11459023,82830.0,82815.0,0.00903136]
[1769864359508,0.11459023,82829.0,82815.0,0.00903136]
[1769864359709,0.00011458,82833.0,82815.0,0.00903136]
[1769864359710,0.11459023,82828.0,82815.0,0.00903136]
[1769864360009,0.11459023,82827.0,82815.0,0.00903136]
[1769864360209,0.01000918,82833.0,82815.0,0.00903136]
[1769864360408,0.1146178,82832.0,82815.0,0.00903136]
[1769864360609,0.1146178,82831.0,82815.0,0.00903136]
[1769864360914,0.1146178,82830.0,82815.0,0.00903136]
[1769864361113,0.1146178,82829.0,82815.0,0.00903136]
[1769864361313,0.1146178,82828.0,82815.0,0.00903136]
[1769864361507,0.1146178,82827.0,82815.0,0.00903136]
[1769864361702,0.01000918,82833.0,82815.0,0.00903136]
[1769864361913,0.1245279,82832.0,82815.0,0.00903136]
[1769864362113,0.1146333,82831.0,82815.0,0.00903136]
[1769864362617,0.1245279,82831.0,82815.0,0.00903136]
[1769864362809,0.1146333,82830.0,82815.0,0.00903136]
[1769864366717,0.1245279,82830.0,82815.0,0.00903136]
[1769864367017,0.1146333,82829.0,82815.0,0.00903136]
[1769864367213,0.1146333,82828.0,82815.0,0.00903136]
[1769864367413,0.00011458,82833.0,82815.0,0.00903136]
[1769864367414,0.1146333,82827.0,82815.0,0.00903136]
[1769864367614,0.1146333,82826.0,82815.0,0.00903136]
[1769864367817,0.00011458,82833.0,82819.0,0.00871207]
[1769864368015,0.11396177,82832.0,82820.0,0.02080507]
[1769864368212,0.00011458,82833.0,82820.0,0.02080507]
[1769864368419,0.00011458,82833.0,82821.0,0.00871207]
[1769864371218,0.0098946,82847.0,82821.0,0.00871207]
[1769864371424,0.11386671,82846.0,82821.0,0.00871207]
[1769864371719,0.0098946,82844.0,82821.0,0.00871207]
[1769864371918,0.0098946,82842.0,82821.0,0.00871207]
[1769864372313,0.11142678,82841.0,82821.0,0.00871207]
[1769864372621,0.11142678,82840.0,82821.0,0.00871207]
[1769864372821,0.11142678,82839.0,82821.0,0.00871207]
[1769864373120,0.0098946,82841.0,82825.0,0.00810037]
[1769864373314,0.11142632,82840.0,82826.0,0.10884]
[1769864373509,0.11142632,82839.0,82826.0,0.10884]
[1769864373721,0.0098946,82849.0,82827.0,0.00810037]
[1769864373926,0.0098946,82847.0,82827.0,0.00810037]
[1769864374118,0.1113983,82846.0,82827.0,0.00810037]
[1769864374317,0.1212929,82846.0,82827.0,0.00810037]
[1769864374516,0.0098946,82844.0,82827.0,0.00810037]
[1769864374719,0.1212929,82843.0,82827.0,0.00810037]
[1769864374916,0.1113983,82842.0,82827.0,0.00810037]
[1769864375117,0.1113983,82841.0,82827.0,0.00810037]
[1769864375316,0.1113983,82840.0,82827.0,0.00810037]
[1769864375520,0.0098946,82843.0,82827.0,0.00810037]
[1769864375723,0.12125607,82842.0,82827.0,0.00810037]
[1769864375916,0.11136147,82841.0,82827.0,0.00810037]
[1769864376119,0.11136147,82840.0,82827.0,0.00810037]
[1769864376822,0.00908064,82845.0,82827.0,0.00810037]
[1769864377716,0.00908064,82845.0,82827.0,0.00910037]
[1769864379222,0.00908064,82849.0,82829.0,0.0078906]
[1769864381338,0.00908064,82849.0,82806.0,0.23975392]
[1769864381631,0.00908064,82849.0,82796.0,0.09689586]
[1769864381632,0.00947583,82848.0,82796.0,0.09689586]
[1769864381822,0.24087667,82843.0,82796.0,0.09689586]
[1769864382023,1.5,82842.0,82796.0,0.09689586]
[1769864382324,0.24083936,82837.0,82796.0,0.09189586]
[1769864382527,0.24083936,82834.0,82796.0,0.09189586]
[1769864382723,0.24083936,82834.0,82796.0,0.08889586]
[1769864382922,0.24083936,82833.0,82796.0,0.08889586]
[1769864383326,0.24083936,82835.0,82796.0,0.08889586]
[1769864383531,0.24083936,82834.0,82796.0,0.08889586]
[1769864383730,0.24083936,82834.0,82796.0,0.05473386]
[1769864384033,0.24383936,82834.0,82796.0,8.6e-07]
[1769864384236,0.003,82834.0,82796.0,8.6e-07]
[1769864384728,0.012096,82797.0,82796.0,8.6e-07]
[1769864384932,0.012096,82797.0,82775.0,0.11915932]
[1769864384933,0.06890825,82797.0,82779.0,0.01035932]
[1769864385135,0.06890825,82797.0,82782.0,0.18108001]
[1769864385335,0.06890825,82797.0,82775.0,0.18108001]
[1769864385732,0.06890825,82797.0,82781.0,0.18108001]
[1769864385933,0.06890825,82797.0,82780.0,0.18108001]
[1769864386326,0.06304081,82797.0,82791.0,0.18108001]
[1769864386537,0.06304081,82797.0,82796.0,0.18108001]
[1769864386741,0.06304081,82797.0,82793.0,0.1583187]
[1769864386952,0.06304081,82797.0,82786.0,0.1583187]
[1769864387555,0.06304081,82797.0,82790.0,0.1583187]
[1769864387748,0.06304081,82797.0,82777.0,0.10884]
[1769864387749,0.06304081,82797.0,82786.0,0.1583187]
[1769864388050,0.06304081,82797.0,82777.0,0.10884]
[1769864388051,0.06404081,82797.0,82782.0,0.1583187]
[1769864388452,0.06404081,82797.0,82785.0,0.1583187]
[1769864388750,0.06404081,82797.0,82782.0,0.1583187]
[1769864389134,0.06404081,82797.0,82785.0,0.1583187]
[1769864389338,0.06404081,82797.0,82782.0,0.1583187]
[1769864389554,0.06304081,82797.0,82782.0,0.1583187]
[1769864389748,0.06304081,82797.0,82785.0,0.1583187]
[1769864389935,0.06495274,82804.0,82782.0,0.1583187]
[1769864390141,0.10884,82817.0,82779.0,0.16891713]
[1769864390436,0.11748008,82816.0,82779.0,0.01059843]
[1769864390653,0.11748008,82815.0,82779.0,0.01059843]
[1769864390849,0.11748008,82814.0,82779.0,0.01059843]
[1769864391046,0.11748008,82813.0,82779.0,0.01059843]
[1769864391250,0.11748008,82812.0,82779.0,0.01059843]
[1769864391542,0.11748008,82811.0,82779.0,0.01059843]
[1769864391849,0.09818368,82834.0,82802.0,0.01063151]
[1769864392039,0.10884,82838.0,82802.0,0.01063151]
[1769864392040,0.22660331,82833.0,82802.0,0.01063151]
[1769864392239,0.11776331,82832.0,82802.0,0.01063151]
[1769864392438,0.11776331,82831.0,82804.0,0.16895021]
[1769864392644,0.11776331,82830.0,82804.0,0.01063151]
[1769864392844,0.10884,82833.0,82805.0,0.1583187]
[1769864393051,0.11775547,82832.0,82797.0,0.01068054]
[1769864393245,0.11775547,82831.0,82803.0,0.01068054]
[1769864393550,0.10884,82833.0,82803.0,0.01068054]
[1769864393752,0.11776704,82832.0,82805.0,0.16899924]
[1769864394044,0.10884,82833.0,82806.0,0.16899924]
[1769864394045,0.11776704,82831.0,82806.0,0.16899924]
[1769864394248,0.10884,82833.0,82806.0,0.01068054]
[1769864394443,0.11776706,82832.0,82807.0,0.1583187]
[1769864394750,0.10884,82833.0,82813.0,0.01068054]
[1769864395143,0.10884,82833.0,82815.0,0.1583187]
[1769864395341,0.10884,82833.0,82818.0,0.1583187]
[1769864395841,0.10884,82833.0,82821.0,0.1583187]
[1769864396151,0.10884,82833.0,82819.0,0.1583187]
[1769864396650,0.10884,82833.0,82822.0,0.1583187]
[1769864396847,0.15512068,82832.0,82819.0,0.1583187]
[1769864397149,0.10884,82833.0,82819.0,0.1583187]
[1769864397150,0.15512068,82831.0,82819.0,0.1583187]
[1769864397351,0.15512068,82830.0,82822.0,0.1583187]
[1769864397554,0.10884,82833.0,82820.0,0.20716588]
[1769864397852,0.15514769,82832.0,82822.0,0.1583187]
[1769864398055,0.15514769,82831.0,82822.0,0.1583187]
[1769864398251,0.15514769,82830.0,82823.0,0.1583187]
[1769864398457,0.15514769,82829.0,82822.0,0.1583187]
[1769864398647,0.10884,82833.0,82822.0,0.1583187]
[1769864398968,0.1551588,82832.0,82824.0,0.1583187]
[1769864399250,0.1551588,82831.0,82823.0,0.1583187]
[1769864399440,0.1551588,82830.0,82823.0,0.1583187]
[1769864399644,0.1551588,82829.0,82824.0,0.1583187]
[1769864399853,0.1551588,82828.0,82823.0,0.1583187]
[1769864400051,0.10884,82833.0,82827.0,0.1583187]
[1769864400252,0.15516858,82832.0,82822.0,0.1583187]
[1769864400448,0.15516858,82831.0,82822.0,0.1583187]
[1769864400651,0.15516858,82830.0,82825.0,0.1583187]
[1769864400850,0.15516858,82829.0,82823.0,0.1583187]
[1769864401050,0.15516858,82828.0,82823.0,0.1583187]
[1769864401356,0.10884,82842.0,82834.0,0.1583187]
[1769864401556,0.15518282,82841.0,82831.0,0.0494787]
[1769864401849,0.10884,82843.0,82817.0,0.10884]
[1769864401850,0.15518282,82840.0,82821.0,0.01057401]
[1769864402056,0.15518282,82839.0,82827.0,0.0494787]
[1769864402252,0.15518282,82838.0,82827.0,0.0494787]
[1769864402451,0.15518282,82837.0,82820.0,0.01057401]
[1769864402652,0.15518282,82836.0,82820.0,0.01057401]
[1769864402851,0.15518282,82835.0,82820.0,0.01057401]
[1769864403067,0.15518282,82834.0,82820.0,0.01057401]
[1769864403357,0.10884,82843.0,82820.0,0.02266701]
[1769864403653,0.1551937,82842.0,82821.0,0.01061527]
[1769864403956,0.1551937,82841.0,82821.0,0.01061527]
[1769864404146,0.1551937,82840.0,82821.0,0.01061527]
[1769864404449,0.1551937,82839.0,82821.0,0.01061527]
[1769864404655,0.1551937,82838.0,82821.0,0.01061527]
[1769864404854,0.1551937,82837.0,82821.0,0.01061527]
[1769864405164,0.1551937,82836.0,82821.0,0.01061527]
[1769864405354,0.1551937,82835.0,82821.0,0.01061527]
[1769864405552,0.10884,82843.0,82821.0,0.01061527]
[1769864405746,0.15521881,82842.0,82821.0,0.01061527]
[1769864405947,0.15521881,82841.0,82821.0,0.01061527]
[1769864406149,0.15521881,82840.0,82821.0,0.01061527]